[Event "AUT Bundesliga 2021-22"]
[Site "Graz"]
[Date "2022.03.24"]
[Round "5.21"]
[White "Froewis, Georg"]
[Black "Vitouch, Anatol"]
[Result "1/2-1/2"]
[ECO "A21"]
[WhiteElo "2449"]
[BlackElo "2245"]
[Annotator "NA"]
[PlyCount "61"]
[EventDate "2021.11.04"]
[EventType "team-tourn"]
[EventCountry "AUT"]
[SourceTitle "playchess.com"]
[Source "ChessBase"]
[SourceQuality "1"]
[TimeControl "40/5400+30:1800+30"]

1. c4 {[%emt 0:00:03]} e5 {[%emt 0:00:13]} 2. Nc3 {[%emt 0:00:05]} d6 {[%emt 0:00:12]} 3. d4 {[%emt 0:01:40]} exd4 {[%emt 0:00:28]} 4. Qxd4 {[%emt 0:00:06]} Nc6 {[%emt 0:00:14]} 5. Qd2 {[%emt 0:00:11]} g6 {[%emt 0:02:30]} 6. b3 {[%emt 0:02:07]} Bg7 {[%emt 0:00:14]} 7. Bb2 {[%emt 0:00:07]} Nf6 {[%emt 0:03:44]} 8. g3 {[%emt 0:00:33]} O-O {[%emt 0:00:47]} 9. Bg2 {[%emt 0:00:03]} Re8 {[%emt 0:01:00]} 10. Nh3 {[%emt 0:06:20] 10.Nf3 is more advanced technology.} Bxh3 {[%emt 0:20:29]} 11. Bxh3 {[%emt 0:00:06]} Ne4 {[%emt 0:00:15]} 12. Nxe4 {[%emt 0:00:08]} Rxe4 {[%emt 0:03:14]} 13. Bg2 {[%emt 0:00:28]} Bxb2 {[%emt 0:01:00]} 14. Qxb2 {[%emt 0:00:05]} Re5 {[%emt 0:01:12]} 15. O-O {[%emt 0:00:52]} Qe7 {[%emt 0:02:22]} 16. e3 {[%emt 0:00:15]} a5 {[%emt 0:01:34]} 17. Rad1 {[%emt 0:01:17]} Rb8 {[%emt 0:01:17] [#]} 18. Qc3 $146 {[%emt 0:02:22]} ({Predecessor:} 18. Rd2 Nb4 19. Rfd1 b5 20. Qc3 bxc4 21. Qxc4 Rc5 22. Qe2 Rb6 23. a3 Na6 24. Bd5 {½-½ (56) Robatsch,K (2430)-Dzindzichashvili,R (2550) Amsterdam 1978}) 18... Nd8 {[%emt 0:01:50]} 19. Rd5 $14 {[%emt 0:02:27]} b6 {[%emt 0:05:04]} 20. Rfd1 {[%emt 0:00:56]} f6 {[%emt 0:04:36]} 21. c5 {[%emt 0:07:42]} bxc5 {[%emt 0:04:56]} 22. Qxa5 {[%emt 0:00:19]} Kg7 {[%emt 0:03:24]} 23. Qa7 {[%emt 0:11:31]} Rb6 {[%emt 0:05:40]} 24. R5d2 {[%emt 0:05:22]} Nf7 {[%emt 0:05:02]} 25. Bd5 {[%emt 0:06:26]} Ng5 {[%emt 0:05:57]} 26. Qa8 {[%emt 0:00:44]} Ne4 {[%emt 0:09:37]} 27. Rd3 {[%emt 0:10:39]} Qe8 {[%emt 0:05:34]} 28. f3 {[%emt 0:07:13]} Ng5 {[%emt 0:02:18]} 29. Qxe8 {[%emt 0:11:33]} Rxe8 {[%emt 0:00:05]} 30. h4 {[%emt 0:00:15]} Nf7 {[%emt 0:01:20]} 31. f4 {[%emt 0:07:21]} 1/2-1/2

[Event "AUT Bundesliga 2021-22"]
[Site "Graz"]
[Date "2022.03.24"]
[Round "5.22"]
[White "Lovrinovic, Christian"]
[Black "Peyrer, Konstantin"]
[Result "0-1"]
[ECO "D85"]
[WhiteElo "2117"]
[BlackElo "2301"]
[Annotator "NA"]
[PlyCount "96"]
[EventDate "2021.11.04"]
[EventType "team-tourn"]
[EventCountry "AUT"]
[SourceTitle "playchess.com"]
[Source "ChessBase"]
[SourceQuality "1"]
[TimeControl "40/5400+30:1800+30"]

1. d4 {[%emt 0:00:02]} Nf6 {[%emt 0:00:06]} 2. c4 {[%emt 0:00:03]} g6 {[%emt 0:00:03]} 3. Nc3 {[%emt 0:00:04]} d5 {[%emt 0:00:03]} 4. cxd5 {[%emt 0:00:30]} Nxd5 {[%emt 0:00:04]} 5. e4 {[%emt 0:00:03]} Nxc3 {[%emt 0:00:04]} 6. bxc3 {[%emt 0:00:03]} Bg7 {[%emt 0:00:06]} 7. Nf3 {[%emt 0:00:06]} c5 {[%emt 0:00:04]} 8. Rb1 {[%emt 0:00:04]} O-O $11 {[%emt 0:00:19]} 9. Be2 {[%emt 0:00:21]} Nc6 {[%emt 0:00:05]} 10. d5 {[%emt 0:00:46]} Ne5 {[%emt 0:00:04]} 11. Nxe5 {[%emt 0:01:02]} Bxe5 {[%emt 0:00:04]} 12. Qd2 {[%emt 0:00:05]} e6 {[%emt 0:00:08]} 13. f4 {[%emt 0:09:44]} Bc7 {[%emt 0:00:09]} 14. O-O {[%emt 0:04:20]} exd5 {[%emt 0:00:31]} 15. exd5 {[%emt 0:00:05]} Ba5 {[%emt 0:00:16]} 16. Kh1 {[%emt 0:05:34]} Qf6 {[%emt 0:03:47]} 17. Rb3 {[%emt 0:00:28]} b6 {[%emt 0:01:29]} 18. Bb2 {[%emt 0:05:33]} Re8 {[%emt 0:05:53]} 19. Qd1 {[%emt 0:34:41]} Bd7 {[%emt 0:08:52]} 20. c4 {[%emt 0:15:16]} Qh4 {[%emt 0:08:26]} 21. Rg3 {[%emt 0:10:50]} Re4 {[%emt 0:03:21]} 22. Be5 {[%emt 0:01:44]} Re8 {[%emt 0:01:04]} 23. Bd3 {[%emt 0:00:23]} R8xe5 {[%emt 0:00:10]} 24. fxe5 {[%emt 0:00:11]} Rxe5 {[%emt 0:00:04]} 25. Qf3 {[%emt 0:01:02]} f5 {[%emt 0:00:14]} 26. Qf4 {[%emt 0:00:21]} Qxf4 {[%emt 0:00:48]} 27. Rxf4 {[%emt 0:00:02]} Be1 {[%emt 0:02:42]} 28. Rgf3 {[%emt 0:01:44]} Bd2 {[%emt 0:00:51]} 29. Rh4 {[%emt 0:01:52]} Bg5 {[%emt 0:00:22]} 30. Rhh3 {[%emt 0:00:04]} f4 {[%emt 0:00:04]} 31. Kg1 {[%emt 0:01:29]} Bxh3 {[%emt 0:00:54]} 32. Rxh3 {[%emt 0:00:02]} Re1+ {[%emt 0:00:22]} 33. Kf2 {[%emt 0:00:01]} Ra1 {[%emt 0:00:43]} 34. Kf3 {[%emt 0:00:11]} Rxa2 {[%emt 0:02:38]} 35. d6 {[%emt 0:00:41]} Rd2 {[%emt 0:02:48]} 36. Ke4 {[%emt 0:00:22]} Kg7 {[%emt 0:02:14]} 37. Kd5 {[%emt 0:00:49]} Rxg2 {[%emt 0:02:44]} 38. Kc6 {[%emt 0:00:12]} Rb2 {[%emt 0:01:00]} 39. Kc7 {[%emt 0:00:43]} Rb3 {[%emt 0:00:19]} 40. d7 {[%emt 0:00:00]} a5 {[%emt 0:00:00]} 41. Rf3 {[%emt 0:10:02]} a4 {[%emt 0:00:16]} 42. d8=Q {[%emt 0:00:29]} Bxd8+ {[%emt 0:00:04]} 43. Kxd8 {[%emt 0:00:04]} a3 {[%emt 0:00:11]} 44. Rxf4 {[%emt 0:00:10]} Rxd3+ {[%emt 0:00:07]} 45. Kc7 {[%emt 0:00:03]} a2 {[%emt 0:00:35]} 46. Rf1 {[%emt 0:00:03]} Rb3 {[%emt 0:00:05]} 47. Ra1 {[%emt 0:00:04]} Rb2 {[%emt 0:00:05]} 48. Kc6 {[%emt 0:00:26]} h5 {[%emt 0:00:13]} 0-1

[Event "AUT Bundesliga 2021-22"]
[Site "Graz"]
[Date "2022.03.24"]
[Round "5.23"]
[White "Schneider-Zinner, Harald"]
[Black "Prinzjakowitsch, Bernhard"]
[Result "1/2-1/2"]
[ECO "A48"]
[WhiteElo "2370"]
[BlackElo "2091"]
[Annotator "NA"]
[PlyCount "75"]
[EventDate "2021.11.04"]
[EventType "team-tourn"]
[EventCountry "AUT"]
[SourceTitle "playchess.com"]
[Source "ChessBase"]
[SourceQuality "1"]
[TimeControl "40/5400+30:1800+30"]

1. d4 {[%emt 0:00:04]} Nf6 {[%emt 0:00:09]} 2. Nf3 {[%emt 0:00:06]} g6 {[%emt 0:00:11]} 3. c4 {[%emt 0:00:14]} Bg7 {[%emt 0:00:06]} 4. g3 {[%emt 0:00:39]} c6 {[%emt 0:03:29]} 5. Bg2 {[%emt 0:01:59]} O-O {[%emt 0:00:14]} 6. O-O {[%emt 0:00:37]} d5 {[%emt 0:00:13]} 7. b3 {[%emt 0:02:25]} Bf5 {[%emt 0:02:26]} 8. Bb2 {[%emt 0:01:26]} Nbd7 {[%emt 0:01:11]} 9. e3 {[%emt 0:03:39]} b5 {[%emt 0:04:55]} 10. cxb5 {[%emt 0:15:50]} cxb5 {[%emt 0:00:06]} 11. Nc3 {[%emt 0:00:55]} b4 {[%emt 0:01:57]} 12. Na4 {[%emt 0:01:45]} Rc8 {[%emt 0:01:44]} 13. Qd2 {[%emt 0:08:28]} Qa5 {[%emt 0:01:51]} 14. Rfc1 {[%emt 0:17:45]} Ne4 {[%emt 0:05:15]} 15. Qe1 {[%emt 0:00:25]} Nb6 {[%emt 0:10:39]} 16. a3 {[%emt 0:06:13]} Nxa4 {[%emt 0:00:10]} 17. axb4 {[%emt 0:02:44]} Rxc1 {[%emt 0:00:16]} 18. Bxc1 {[%emt 0:03:37]} Qc7 {[%emt 0:03:08]} 19. bxa4 {[%emt 0:00:14]} Qc2 {[%emt 0:00:08]} 20. b5 {[%emt 0:04:51]} Rc8 {[%emt 0:00:21]} 21. a5 {[%emt 0:08:12]} Qb3 {[%emt 0:05:11]} 22. b6 {[%emt 0:01:08]} axb6 {[%emt 0:00:15]} 23. a6 {[%emt 0:00:15]} Ra8 {[%emt 0:08:21]} 24. Nd2 {[%emt 0:02:03]} Qc3 {[%emt 0:01:51]} 25. Ra3 {[%emt 0:01:16]} Qb4 {[%emt 0:01:19]} 26. Nf3 {[%emt 0:07:44]} Qd6 {[%emt 0:02:09]} 27. Bb2 {[%emt 0:04:26]} f6 {[%emt 0:01:26]} 28. Qa1 {[%emt 0:02:21]} Bd7 {[%emt 0:01:48]} 29. Bf1 {[%emt 0:00:34]} Bf8 {[%emt 0:04:42]} 30. Bc3 {[%emt 0:01:56]} e6 {[%emt 0:03:07]} 31. Ra2 {[%emt 0:00:01]} g5 {[%emt 0:03:46]} 32. Nd2 {[%emt 0:00:23]} Nxc3 {[%emt 0:03:07]} 33. Qxc3 {[%emt 0:00:02]} Rc8 {[%emt 0:00:58]} 34. Qb3 {[%emt 0:01:12]} Qb4 {[%emt 0:00:21]} 35. a7 {[%emt 0:00:53]} Qxb3 {[%emt 0:01:19]} 36. Nxb3 {[%emt 0:00:01]} Ra8 {[%emt 0:00:30]} 37. g4 {[%emt 0:01:54]} Kf7 {[%emt 0:02:23]} 38. Kg2 {[%emt 0:00:39]} 1/2-1/2

[Event "AUT Bundesliga 2021-22"]
[Site "Graz"]
[Date "2022.03.24"]
[Round "5.24"]
[White "Kosc, Renata"]
[Black "Steindl, Johannes"]
[Result "0-1"]
[ECO "C17"]
[WhiteElo "1974"]
[BlackElo "2237"]
[Annotator "NA"]
[PlyCount "98"]
[EventDate "2021.11.04"]
[EventType "team-tourn"]
[EventCountry "AUT"]
[SourceTitle "playchess.com"]
[Source "ChessBase"]
[SourceQuality "1"]
[TimeControl "40/5400+30:1800+30"]

1. e4 {[%emt 0:00:02]} e6 {[%emt 0:00:04]} 2. d4 {[%emt 0:00:05]} d5 {[%emt 0:00:04]} 3. Nc3 {[%emt 0:00:10]} Bb4 {[%emt 0:00:04]} 4. e5 {[%emt 0:00:20]} c5 {[%emt 0:00:05]} 5. Bd2 {[%emt 0:00:34]} Ne7 {[%emt 0:02:23]} 6. a3 {[%emt 0:00:13]} Bxc3 {[%emt 0:00:07]} 7. Bxc3 {[%emt 0:00:04]} b6 {[%emt 0:01:27]} 8. Bb5+ {[%emt 0:14:27]} Bd7 {[%emt 0:02:25]} 9. Be2 {[%emt 0:03:57]} Nbc6 {[%emt 0:03:01]} 10. Nf3 {[%emt 0:05:08]} O-O {[%emt 0:02:44]} 11. O-O {[%emt 0:06:14]} Ng6 {[%emt 0:04:31]} 12. g3 {[%emt 0:14:42]} Qc7 {[%emt 0:04:48]} 13. Re1 {[%emt 0:06:17]} cxd4 {[%emt 0:01:42]} 14. Bxd4 {[%emt 0:00:09]} Nxd4 {[%emt 0:12:33]} 15. Qxd4 {[%emt 0:00:17]} Qxc2 {[%emt 0:00:05]} 16. Bd3 {[%emt 0:07:53]} Qc5 {[%emt 0:04:47]} 17. Rac1 {[%emt 0:03:17]} Qxd4 {[%emt 0:03:24]} 18. Nxd4 {[%emt 0:00:05]} Rfc8 {[%emt 0:00:12]} 19. Bxg6 {[%emt 0:03:25]} hxg6 {[%emt 0:00:28]} 20. f4 {[%emt 0:03:28]} Kf8 {[%emt 0:01:15]} 21. Kf2 {[%emt 0:00:15]} Ke7 {[%emt 0:00:17]} 22. Ke3 {[%emt 0:00:18]} a5 {[%emt 0:00:35]} 23. Kd2 {[%emt 0:11:12]} Rc5 {[%emt 0:08:08]} 24. Rc3 {[%emt 0:02:57]} Rxc3 {[%emt 0:02:41]} 25. bxc3 {[%emt 0:00:09]} Kd8 {[%emt 0:01:52]} 26. Rb1 {[%emt 0:00:36]} Kc7 {[%emt 0:00:06]} 27. h4 {[%emt 0:00:46]} Rb8 {[%emt 0:01:37]} 28. Rb2 {[%emt 0:01:27]} Rh8 {[%emt 0:04:43]} 29. Ke3 {[%emt 0:00:20]} Kb7 {[%emt 0:01:38]} 30. Nf3 {[%emt 0:03:12]} Rc8 {[%emt 0:00:49]} 31. Kd3 {[%emt 0:00:19]} Rc4 {[%emt 0:02:16]} 32. Nd4 {[%emt 0:00:33]} Ka6 {[%emt 0:00:26]} 33. Kd2 {[%emt 0:02:45]} Rc5 {[%emt 0:00:41]} 34. Rb3 {[%emt 0:01:44]} Bb5 {[%emt 0:02:35]} 35. Rb2 {[%emt 0:00:50]} Bf1 {[%emt 0:01:25]} 36. Rb1 {[%emt 0:00:17]} Bh3 {[%emt 0:02:49]} 37. Rb2 {[%emt 0:01:29]} Bg4 {[%emt 0:00:31]} 38. Rb1 {[%emt 0:00:53]} Rc4 {[%emt 0:01:59]} 39. Rb3 {[%emt 0:01:50]} Ra4 {[%emt 0:06:48]} 40. Ke1 {[%emt 0:04:22]} Kb7 {[%emt 0:06:12]} 41. Kd2 {[%emt 0:07:13]} Ka6 {[%emt 0:03:37]} 42. Ke1 {[%emt 0:00:25]} Bh3 {[%emt 0:00:16]} 43. Nb5 {[%emt 0:06:20]} Re4+ {[%emt 0:05:32]} 44. Kf2 {[%emt 0:00:15]} Bg4 {[%emt 0:01:16]} 45. Nd6 {[%emt 0:00:25]} Re2+ {[%emt 0:00:20]} 46. Kf1 {[%emt 0:01:05]} Re3 {[%emt 0:01:42]} 47. Nc8 {[%emt 0:07:57]} b5 {[%emt 0:00:49]} 48. Nd6 {[%emt 0:00:33]} d4 {[%emt 0:00:22]} 49. Nxb5 {[%emt 0:00:14]} Be2+ {[%emt 0:00:04]} 0-1

[Event "AUT Bundesliga 2021-22"]
[Site "Graz"]
[Date "2022.03.24"]
[Round "5.29"]
[White "Moosbrugger, Alexander"]
[Black "Mazi, Leon"]
[Result "0-1"]
[ECO "B20"]
[WhiteElo "1963"]
[BlackElo "2347"]
[Annotator "NA"]
[PlyCount "98"]
[EventDate "2021.11.04"]
[EventType "team-tourn"]
[EventCountry "AUT"]
[SourceTitle "playchess.com"]
[Source "ChessBase"]
[SourceQuality "1"]
[TimeControl "40/5400+30:1800+30"]

1. e4 {[%emt 0:00:30]} c5 {[%emt 0:00:37]} 2. g3 {[%emt 0:00:00]} Nc6 {[%emt 0:02:39]} 3. Bg2 {[%emt 0:00:16]} g6 {[%emt 0:01:42]} 4. d3 {[%emt 0:00:30]} Bg7 {[%emt 0:00:50]} 5. Ne2 {[%emt 0:00:36]} e6 {[%emt 0:00:50]} 6. Nbc3 {[%emt 0:00:59]} Nge7 {[%emt 0:01:13]} 7. O-O {[%emt 0:06:59]} O-O {[%emt 0:00:48]} 8. Bf4 {[%emt 0:12:28]} d6 {[%emt 0:05:51]} 9. Qd2 {[%emt 0:02:19]} a6 {[%emt 0:02:48]} 10. Bh6 {[%emt 0:02:59]} Nd4 {[%emt 0:08:29]} 11. Bxg7 {[%emt 0:04:37]} Kxg7 $14 {[%emt 0:01:06]} 12. Nxd4 {[%emt 0:05:09]} cxd4 {[%emt 0:00:05]} 13. Ne2 {[%emt 0:00:09]} e5 {[%emt 0:06:46]} 14. f4 {[%emt 0:04:06]} f6 {[%emt 0:05:16]} 15. c3 {[%emt 0:08:34]} dxc3 {[%emt 0:01:35]} 16. bxc3 {[%emt 0:05:19]} Qc7 {[%emt 0:03:02]} 17. Rac1 {[%emt 0:08:09]} Be6 {[%emt 0:03:08]} 18. c4 {[%emt 0:03:14]} Rac8 {[%emt 0:02:42]} 19. h3 {[%emt 0:01:07]} b5 {[%emt 0:12:45]} 20. cxb5 {[%emt 0:07:16]} Qb6+ {[%emt 0:00:15]} 21. Kh2 {[%emt 0:02:40]} axb5 {[%emt 0:00:19]} 22. d4 {[%emt 0:02:32]} Bc4 {[%emt 0:02:19]} 23. fxe5 {[%emt 0:01:55]} dxe5 {[%emt 0:02:02]} 24. d5 {[%emt 0:02:19]} Ra8 {[%emt 0:01:20]} 25. Rc2 {[%emt 0:04:04]} Nc8 {[%emt 0:01:42]} 26. Rfc1 {[%emt 0:02:59]} Nd6 {[%emt 0:01:05]} 27. Qb4 {[%emt 0:03:40]} Ra4 {[%emt 0:02:44]} 28. Qd2 {[%emt 0:01:06]} Rfa8 {[%emt 0:00:51]} 29. Nc3 {[%emt 0:01:12]} Ra3 {[%emt 0:00:39]} 30. Rb1 {[%emt 0:03:09]} Qd4 {[%emt 0:08:44]} 31. Rd1 {[%emt 0:03:03]} Qxd2 {[%emt 0:09:03]} 32. Rdxd2 {[%emt 0:00:17]} R8a7 {[%emt 0:03:56]} 33. g4 {[%emt 0:00:52]} Kf7 {[%emt 0:02:57]} 34. Kg1 {[%emt 0:00:19]} b4 {[%emt 0:00:56]} 35. Nb1 {[%emt 0:01:00]} Rxa2 {[%emt 0:00:51]} 36. Rb2 {[%emt 0:00:47]} b3 {[%emt 0:02:23]} 37. Nc3 {[%emt 0:00:42]} Ra1+ {[%emt 0:01:19]} 38. Kh2 {[%emt 0:00:11]} Rc1 {[%emt 0:01:11]} 39. Nd1 {[%emt 0:00:43]} Ra2 {[%emt 0:00:56]} 40. Ne3 {[%emt 0:00:00]} Rxb2 {[%emt 0:00:00]} 41. Rxb2 {[%emt 0:02:34]} Rc3 {[%emt 0:02:34]} 42. Nd1 {[%emt 0:02:51]} Rc2 {[%emt 0:00:44]} 43. Kg3 {[%emt 0:00:46]} Nb5 {[%emt 0:00:46]} 44. Rb1 {[%emt 0:00:45]} Nc3 {[%emt 0:01:55]} 45. Nxc3 {[%emt 0:00:45]} Rxc3+ {[%emt 0:00:05]} 46. Kh2 {[%emt 0:02:42]} Bd3 {[%emt 0:00:42]} 47. Rb2 {[%emt 0:00:17]} Ke7 {[%emt 0:00:37]} 48. Kg1 {[%emt 0:00:31]} Rc1+ {[%emt 0:00:57]} 49. Kh2 {[%emt 0:00:22]} Bc2 {[%emt 0:00:16]} 0-1

[Event "AUT Bundesliga 2021-22"]
[Site "Graz"]
[Date "2022.03.24"]
[Round "5.30"]
[White "Dietmayer-Kraeutler, Marco"]
[Black "Amann, Harald"]
[Result "1-0"]
[ECO "D37"]
[WhiteElo "2312"]
[BlackElo "1913"]
[Annotator "NA"]
[PlyCount "87"]
[EventDate "2021.11.04"]
[EventType "team-tourn"]
[EventCountry "AUT"]
[SourceTitle "playchess.com"]
[Source "ChessBase"]
[SourceQuality "1"]
[TimeControl "40/5400+30:1800+30"]

1. d4 {[%emt 0:00:03]} d5 {[%emt 0:00:50]} 2. c4 {[%emt 0:00:06]} e6 {[%emt 0:00:23]} 3. Nc3 {[%emt 0:00:21]} Nf6 {[%emt 0:00:16]} 4. Nf3 {[%emt 0:01:01]} Be7 {[%emt 0:00:18]} 5. Bg5 {[%emt 0:00:26]} c6 {[%emt 0:00:25]} 6. e3 {[%emt 0:00:05]} Nbd7 {[%emt 0:00:53]} 7. Qc2 {[%emt 0:00:28]} O-O {[%emt 0:00:26]} 8. cxd5 {[%emt 0:02:18]} exd5 {[%emt 0:00:43]} 9. Bd3 {[%emt 0:00:08]} h6 {[%emt 0:02:03]} 10. Bh4 {[%emt 0:00:41]} Re8 {[%emt 0:00:49]} 11. O-O {[%emt 0:02:39]} Ne4 {[%emt 0:32:11]} 12. Bxe7 {[%emt 0:05:07]} Qxe7 {[%emt 0:03:01]} 13. Bxe4 {[%emt 0:00:08]} dxe4 {[%emt 0:00:42]} 14. Nd2 {[%emt 0:00:06]} Nf6 {[%emt 0:02:04]} 15. Rab1 {[%emt 0:03:31]} b6 {[%emt 0:05:22]} 16. Qa4 {[%emt 0:03:36]} Bd7 {[%emt 0:00:37]} 17. Qa6 {[%emt 0:02:19]} Be6 {[%emt 0:11:04]} 18. Rfc1 {[%emt 0:09:01]} Rad8 {[%emt 0:04:43]} 19. b4 {[%emt 0:02:41]} c5 {[%emt 0:11:41]} 20. bxc5 {[%emt 0:08:28]} bxc5 {[%emt 0:00:22]} 21. Nb5 {[%emt 0:04:32]} cxd4 {[%emt 0:10:57]} 22. Nxd4 {[%emt 0:00:40]} Bd5 {[%emt 0:00:50]} 23. h3 {[%emt 0:06:03]} Qd7 {[%emt 0:05:44]} 24. Nf1 {[%emt 0:05:17]} Rb8 {[%emt 0:00:27]} 25. Ng3 {[%emt 0:00:25]} Rb6 {[%emt 0:01:15]} 26. Rxb6 {[%emt 0:05:56]} axb6 {[%emt 0:00:03]} 27. Qxb6 {[%emt 0:00:09]} Bxa2 {[%emt 0:01:34]} 28. Ngf5 {[%emt 0:01:36]} Be6 {[%emt 0:02:22]} 29. Rc7 {[%emt 0:00:28]} Qd8 {[%emt 0:00:24]} 30. Nxe6 {[%emt 0:03:38]} Rxe6 {[%emt 0:00:46]} 31. Qb7 {[%emt 0:01:43]} Qd1+ {[%emt 0:00:45]} 32. Kh2 {[%emt 0:00:04]} Qh5 {[%emt 0:00:13]} 33. Ng3 {[%emt 0:01:46]} Qg6 {[%emt 0:00:03]} 34. Ne2 {[%emt 0:07:41]} Re8 {[%emt 0:01:08]} 35. Nf4 {[%emt 0:00:21]} Qf5 {[%emt 0:00:51]} 36. g4 {[%emt 0:04:25]} Qe5 {[%emt 0:00:02]} 37. Kg2 {[%emt 0:01:10]} g5 {[%emt 0:01:17]} 38. Ne2 {[%emt 0:01:59]} Qd5 {[%emt 0:00:01]} 39. Qb6 {[%emt 0:02:07]} Re6 {[%emt 0:01:49]} 40. Rc8+ {[%emt 0:00:00]} Ne8 {[%emt 0:00:00]} 41. Qb8 {[%emt 0:01:10]} Qe5 {[%emt 0:01:09]} 42. Qa8 {[%emt 0:05:58]} Kh7 {[%emt 0:07:20]} 43. Nd4 {[%emt 0:01:42]} Re7 {[%emt 0:02:10]} 44. Nc6 {[%emt 0:01:46]} 1-0

[Event "AUT Bundesliga 2021-22"]
[Site "Graz"]
[Date "2022.03.24"]
[Round "5.33"]
[White "Kvetny, Mark"]
[Black "Tica, Sven"]
[Result "1/2-1/2"]
[ECO "A06"]
[WhiteElo "2417"]
[BlackElo "2423"]
[Annotator "NA"]
[PlyCount "61"]
[EventDate "2021.11.04"]
[EventType "team-tourn"]
[EventCountry "AUT"]
[SourceTitle "playchess.com"]
[Source "ChessBase"]
[SourceQuality "1"]
[TimeControl "40/5400+30:1800+30"]

1. Nf3 {[%emt 0:00:02]} d5 {[%emt 0:00:11]} 2. e3 {[%emt 0:00:18]} Nf6 {[%emt 0:00:09]} 3. c4 {[%emt 0:00:06]} e6 {[%emt 0:00:05]} 4. b3 {[%emt 0:00:27]} b6 {[%emt 0:00:12]} 5. Bb2 {[%emt 0:00:52]} Bb7 $11 {[%emt 0:00:07]} 6. Nc3 {[%emt 0:01:06]} a6 {[%emt 0:00:10]} 7. cxd5 {[%emt 0:00:38]} exd5 {[%emt 0:00:07]} 8. d4 {[%emt 0:00:22]} Nbd7 {[%emt 0:00:11]} 9. g3 {[%emt 0:01:10]} Bd6 {[%emt 0:00:43]} 10. Bg2 {[%emt 0:00:06]} O-O {[%emt 0:00:30]} 11. O-O {[%emt 0:00:08]} Qe7 {[%emt 0:05:22]} 12. Qc2 {[%emt 0:03:49]} Rac8 {[%emt 0:03:57]} 13. Rfd1 {[%emt 0:02:16]} Rfd8 {[%emt 0:05:12]} 14. Rac1 {[%emt 0:06:49]} g6 {[%emt 0:13:11]} 15. Ne1 {[%emt 0:17:51]} Ne4 {[%emt 0:14:46]} 16. Nd3 {[%emt 0:00:47]} f5 {[%emt 0:06:02]} 17. Ne2 {[%emt 0:06:08]} Re8 {[%emt 0:03:45]} 18. h4 {[%emt 0:07:03]} a5 {[%emt 0:08:21]} 19. Nef4 {[%emt 0:07:07]} c6 {[%emt 0:00:58]} 20. Re1 {[%emt 0:03:25]} Ba6 {[%emt 0:03:28]} 21. Bf1 {[%emt 0:02:31]} Bb7 {[%emt 0:04:31]} 22. Qd1 {[%emt 0:05:51]} Qf7 {[%emt 0:03:51]} 23. Bg2 {[%emt 0:07:14]} Qe7 {[%emt 0:06:24]} 24. Rc2 {[%emt 0:04:22]} Ra8 {[%emt 0:06:52]} 25. a4 {[%emt 0:01:10]} Rac8 {[%emt 0:01:10]} 26. Qc1 {[%emt 0:01:26]} Qf7 {[%emt 0:02:10]} 27. Rd1 {[%emt 0:01:22]} Qe7 {[%emt 0:02:31]} 28. Ne1 {[%emt 0:04:55]} Ndf6 {[%emt 0:02:04]} 29. Ned3 {[%emt 0:00:53]} Nd7 {[%emt 0:00:20]} 30. Ne1 {[%emt 0:01:03]} Ndf6 {[%emt 0:00:06]} 31. Ned3 {[%emt 0:01:21]} 1/2-1/2

[Event "AUT Bundesliga 2021-22"]
[Site "Graz"]
[Date "2022.03.24"]
[Round "5.34"]
[White "Deglmann, Ludwig"]
[Black "Walter, Stefan"]
[Result "0-1"]
[ECO "D31"]
[WhiteElo "2248"]
[BlackElo "2380"]
[Annotator "ChessBase"]
[PlyCount "108"]
[EventDate "2021.11.04"]
[EventType "team-tourn"]
[EventCountry "AUT"]
[SourceTitle "playchess.com"]
[Source "ChessBase"]
[SourceQuality "1"]
[TimeControl "40/5400+30:1800+30"]

1. d4 {[%emt 0:00:09]} d5 {[%emt 0:00:20]} 2. c4 {[%emt 0:00:21]} e6 {[%emt 0:00:13]} 3. Nc3 {[%emt 0:01:09]} Be7 {[%emt 0:00:30]} 4. cxd5 {[%emt 0:03:53]} exd5 {[%emt 0:00:08]} 5. Bf4 {[%emt 0:00:06]} c6 {[%emt 0:00:54]} 6. e3 {[%emt 0:01:20]} Bd6 {[%emt 0:00:38]} 7. Nge2 {[%emt 0:01:36]} Ne7 {[%emt 0:11:05]} 8. Bxd6 {[%emt 0:09:48]} Qxd6 {[%emt 0:00:05]} 9. Ng3 {[%emt 0:00:12]} Nd7 {[%emt 0:24:21]} 10. Bd3 {[%emt 0:04:52]} Nf6 {[%emt 0:02:34]} 11. Qd2 {[%emt 0:13:45]} h5 {[%emt 0:02:55]} 12. h4 {[%emt 0:08:16]} Bg4 {[%emt 0:04:16]} 13. Nce2 {[%emt 0:08:59]} Bxe2 {[%emt 0:00:52]} 14. Qxe2 {[%emt 0:10:03]} O-O-O {[%emt 0:03:16]} 15. O-O-O {[%emt 0:02:28]} Kb8 {[%emt 0:01:13]} 16. Kb1 {[%emt 0:00:53]} g6 {[%emt 0:05:19]} 17. Qc2 {[%emt 0:12:44]} Ng4 {[%emt 0:04:38]} 18. Nf1 {[%emt 0:07:21]} Rhe8 {[%emt 0:02:58]} 19. f3 {[%emt 0:02:40]} Nh6 {[%emt 0:01:16]} 20. Qf2 {[%emt 0:04:06]} Nef5 {[%emt 0:06:07]} 21. Bxf5 {[%emt 0:00:36]} Nxf5 {[%emt 0:00:37]} 22. g4 {[%emt 0:00:48]} Ng7 {[%emt 0:01:31]} 23. Ng3 {[%emt 0:02:55]} Qe6 {[%emt 0:03:52]} 24. gxh5 {[%emt 0:01:52]} Qxe3 {[%emt 0:04:52]} 25. Qh2 {[%emt 0:00:06]} Ka8 {[%emt 0:01:39]} 26. hxg6 {[%emt 0:00:35]} fxg6 {[%emt 0:00:13]} 27. h5 {[%emt 0:00:43]} gxh5 {[%emt 0:01:04]} 28. Nxh5 {[%emt 0:00:16]} Rh8 {[%emt 0:10:55]} 29. Qc7 {[%emt 0:00:31]} Nxh5 {[%emt 0:01:33]} 30. Rxh5 {[%emt 0:00:08]} Qxf3 {[%emt 0:00:18]} 31. Rhh1 {[%emt 0:00:36]} Qxh1 {[%emt 0:03:09]} 32. Qxd8+ {[%emt 0:00:09]} Rxd8 {[%emt 0:00:05]} 33. Rxh1 {[%emt 0:00:04]} Rg8 {[%emt 0:01:13]} 34. Kc2 {[%emt 0:00:18]} Kb8 {[%emt 0:00:15]} 35. Rh7 {[%emt 0:00:09]} Rg3 {[%emt 0:00:33]} 36. a4 {[%emt 0:01:15]} Kc8 {[%emt 0:01:19]} 37. Rf7 {[%emt 0:00:24]} a5 {[%emt 0:00:51]} 38. Rh7 {[%emt 0:00:36]} Rf3 {[%emt 0:00:07]} 39. Rg7 {[%emt 0:00:13]} Rf1 {[%emt 0:00:40]} 40. Rh7 {[%emt 0:00:00]} Ra1 {[%emt 0:00:00]} 41. b3 {[%emt 0:06:40]} Rg1 {[%emt 0:02:23]} 42. Rf7 {[%emt 0:06:50]} Rg6 {[%emt 0:02:56]} 43. Rh7 {[%emt 0:01:03]} Rd6 {[%emt 0:00:11]} 44. Kc3 {[%emt 0:01:26]} Rd7 {[%emt 0:00:24]} 45. Rh8+ {[%emt 0:00:54]} Kc7 {[%emt 0:00:07]} 46. b4 {[%emt 0:06:04]} Rd8 {[%emt 0:12:51]} 47. Rh7+ {[%emt 0:03:03]} Kb6 {[%emt 0:00:07]} 48. bxa5+ {[%emt 0:04:19]} Ka7 {[%emt 0:02:32]} 49. Rg7 {[%emt 0:06:25]} Rh8 {[%emt 0:00:31]} 50. Rg1 {[%emt 0:00:53]} Rh3+ {[%emt 0:01:19]} 51. Kb4 {[%emt 0:00:27]} Rd3 {[%emt 0:00:28]} 52. Rg4 {[%emt 0:00:03]} Rd1 {[%emt 0:00:13]} 53. Kc3 {[%emt 0:00:31]} Rc1+ {[%emt 0:00:14]} 54. Kb3 {[%emt 0:00:12]} Rc4 {[%emt 0:00:39]} 0-1